bitfinex/quotes_BTCUSD_20240717
["timestamp","ask_amount","ask_price","bid_price","bid_amount"]
[1721234006931,0.876722,64373.0,64372.0,0.14480089]
[1721234007175,0.877722,64373.0,64372.0,0.16128507]
[1721234007469,0.877722,64373.0,64372.0,0.15908507]
[1721234007808,1.191411,64373.0,64372.0,0.16008507]
[1721234008047,1.5021,64373.0,64372.0,0.0672]
[1721234008203,1.191411,64373.0,64372.0,0.0672]
[1721234008400,1.194411,64373.0,64372.0,0.0672]
[1721234008604,1.194411,64373.0,64372.0,0.0662]
[1721234008605,1.193411,64373.0,64372.0,0.0662]
[1721234009006,1.194411,64373.0,64372.0,0.002]
[1721234009438,1.193411,64373.0,64372.0,0.001913]
[1721234009867,1.194411,64373.0,64372.0,0.002913]
[1721234010246,1.21871864,64373.0,64372.0,0.002913]
[1721234010661,1.57940764,64373.0,64372.0,0.002913]
[1721234010911,1.54814257,64373.0,64372.0,0.002913]
[1721234012098,1.54822819,64373.0,64372.0,0.002913]
[1721234012485,1.54822758,64373.0,64372.0,0.002913]
[1721234012907,1.23753858,64373.0,64372.0,0.002913]
[1721234013114,1.23753858,64373.0,64372.0,0.067913]
[1721234013317,1.54822758,64373.0,64372.0,0.002913]
[1721234013715,1.54902208,64373.0,64372.0,0.002913]
[1721234015122,1.54871599,64373.0,64372.0,0.002913]
[1721234016543,2.2181363,64373.0,64372.0,0.002913]
[1721234016817,2.3596363,64373.0,64372.0,0.002913]
[1721234017018,0.05,64372.0,64367.0,0.009174]
[1721234017255,1.89053233,64372.0,64367.0,0.009174]
[1721234017826,2.07405154,64372.0,64367.0,0.009174]
[1721234018040,2.18609276,64372.0,64367.0,0.009174]
[1721234018245,2.2036141,64372.0,64367.0,0.009174]
[1721234018590,1.53995198,64372.0,64367.0,0.009174]
[1721234018793,1.63129557,64372.0,64367.0,0.009174]
[1721234019416,1.54795198,64372.0,64371.0,0.00186688]
[1721234019840,1.52295198,64372.0,64371.0,0.00186688]
[1721234020427,0.80156398,64372.0,64371.0,0.00186688]
[1721234020840,1.12125798,64372.0,64371.0,0.00286688]
[1721234020970,1.1897733,64372.0,64371.0,0.00286688]
[1721234021181,1.41443064,64372.0,64371.0,0.00286688]
[1721234021388,1.52400089,64372.0,64371.0,0.00286688]
[1721234021611,1.51443064,64372.0,64371.0,0.00286688]
[1721234021835,1.53098387,64372.0,64371.0,0.00286688]
[1721234022035,1.62239259,64372.0,64371.0,0.00286688]
[1721234022235,1.53098387,64372.0,64371.0,0.00286688]
[1721234022738,1.52298387,64372.0,64371.0,0.00186688]
[1721234022907,1.52260626,64372.0,64371.0,0.00186688]
[1721234023127,1.80905583,64372.0,64371.0,0.00186688]
[1721234023309,1.268088,64372.0,64371.0,0.00286688]
[1721234023592,1.423435,64372.0,64371.0,0.00286688]
[1721234024113,1.734129,64372.0,64371.0,0.00286688]
[1721234024333,1.76695338,64372.0,64371.0,0.00286688]
[1721234024504,1.72416371,64372.0,64371.0,0.00186688]
[1721234024934,1.73416371,64372.0,64371.0,0.00286688]
[1721234025115,1.82558759,64372.0,64371.0,0.00286688]
[1721234025457,1.67120585,64372.0,64371.0,0.00286688]
[1721234025669,1.27841185,64372.0,64371.0,0.00286688]
[1721234025875,1.25555656,64372.0,64371.0,0.00286688]
[1721234026085,1.39355803,64342.0,64341.0,0.00950032]
[1721234026483,1.39355803,64342.0,64334.0,0.47223371]
[1721234026484,1.08795,64341.0,64334.0,0.009185]
[1721234026705,0.466308,64335.0,64334.0,0.009185]
[1721234026961,1.539224,64335.0,64334.0,0.009185]
[1721234027168,1.188052,64335.0,64334.0,0.009185]
[1721234027341,1.498924,64335.0,64334.0,0.009185]
[1721234027980,1.188052,64335.0,64334.0,0.009185]
[1721234028228,0.310884,64333.0,64328.0,0.0656]
[1721234028435,0.71960331,64335.0,64327.0,0.0656]
[1721234028436,0.155453,64328.0,64327.0,0.0656]
[1721234028596,0.466359,64328.0,64327.0,0.0656]
[1721234028798,0.15545,64329.0,64328.0,0.0816]
[1721234029010,0.777252,64329.0,64328.0,0.0816]
[1721234030507,1.499099,64327.0,64326.0,0.00018]
[1721234030861,0.566366,64327.0,64326.0,0.08178]
[1721234031018,0.566366,64327.0,64326.0,0.155608]
[1721234031019,0.012,64327.0,64326.0,0.155608]
[1721234031222,0.012,64327.0,64326.0,0.30998974]
[1721234031633,0.012,64327.0,64326.0,0.46544774]
[1721234031802,0.026,64327.0,64326.0,0.46544774]
[1721234032009,0.014,64329.0,64328.0,0.155453]
[1721234032208,0.002794,64340.0,64328.0,0.15438174]
[1721234032482,0.155429,64338.0,64330.0,0.0656]
[1721234032687,0.155429,64338.0,64332.0,0.0656]
[1721234032838,0.002794,64357.0,64336.0,0.0791]
[1721234033047,0.155395,64352.0,64341.0,0.0614]
[1721234033204,0.155396,64352.0,64344.0,0.0791]
[1721234033409,0.310782,64354.0,64345.0,0.21578174]
[1721234033410,0.155392,64354.0,64345.0,0.21578174]
[1721234033634,0.310767,64357.0,64346.0,0.0614]
[1721234033981,0.310767,64357.0,64348.0,0.0645]
[1721234033982,0.155392,64354.0,64348.0,0.0645]
[1721234034142,0.155392,64354.0,64349.0,0.1844907]
[1721234034341,0.310777,64355.0,64349.0,0.1844907]
[1721234034755,0.310789,64353.0,64349.0,0.1844907]
[1721234034957,0.31074,64363.0,64349.0,0.1844907]
[1721234035122,0.155385,64356.0,64349.0,0.1844907]
[1721234035325,0.155383,64357.0,64350.0,0.17795064]
[1721234035555,0.310702,64371.0,64351.0,0.15438174]
[1721234035556,0.310774,64356.0,64351.0,0.15438174]
[1721234035757,0.155392,64354.0,64351.0,0.15438174]
[1721234035955,0.310702,64371.0,64351.0,0.15438174]
[1721234035956,0.001,64355.0,64351.0,0.15438174]
[1721234036155,0.001,64355.0,64350.0,0.17795064]
[1721234036156,0.07717479,64354.0,64350.0,0.17795064]
[1721234036377,0.776987,64351.0,64350.0,0.0611]
[1721234036785,0.466236,64345.0,64344.0,0.0611]
[1721234036989,0.77706,64345.0,64344.0,0.0611]
[1721234037865,0.466236,64345.0,64344.0,0.0611]
[1721234038795,0.77706,64345.0,64344.0,0.0611]
[1721234038995,0.77706,64345.0,64344.0,0.07482]
[1721234039145,0.310808,64349.0,64326.0,0.311095]
[1721234039146,0.002794,64339.0,64338.0,0.0608]
[1721234039356,0.002794,64339.0,64332.0,0.0784]
[1721234039357,0.155441,64333.0,64332.0,0.1392]
[1721234039765,1.088087,64333.0,64332.0,0.1392]
[1721234039942,0.777277,64327.0,64326.0,0.00018]
[1721234040144,0.777277,64327.0,64326.0,0.014168]
[1721234040368,0.777277,64327.0,64326.0,0.00018]
[1721234040369,0.917777,64327.0,64326.0,0.00018]
[1721234040568,1.83499676,64327.0,64326.0,0.00018]
[1721234040771,1.79398074,64327.0,64326.0,0.00018]
[1721234041120,2.12789174,64327.0,64326.0,0.00018]
[1721234041290,2.17789174,64327.0,64326.0,0.00018]
[1721234041496,2.12789174,64327.0,64326.0,0.00018]
[1721234041645,2.17789174,64327.0,64326.0,0.00018]
[1721234041853,2.2475977,64327.0,64326.0,0.00018]
[1721234042481,2.17789174,64327.0,64326.0,0.00018]
[1721234043307,1.84004009,64327.0,64326.0,0.00018]
[1721234043511,2.17789174,64327.0,64326.0,0.00018]
[1721234044183,2.17789174,64327.0,64326.0,0.00118]
[1721234044184,2.18889174,64327.0,64326.0,0.00118]
[1721234045351,2.23495109,64327.0,64326.0,0.00118]
[1721234045536,2.34324131,64327.0,64326.0,0.00118]
[1721234045947,2.64315231,64327.0,64326.0,0.00018]
[1721234046391,1.760225,64319.0,64318.0,0.019185]
[1721234046569,2.03760674,64319.0,64318.0,0.019185]
[1721234048341,1.399383,64314.0,64313.0,0.00287835]
[1721234048470,1.65376474,64314.0,64313.0,0.00287835]
[1721234049509,1.49827774,64314.0,64313.0,0.00787835]
[1721234049711,1.65376474,64314.0,64313.0,0.00787835]
[1721234049943,1.499383,64314.0,64313.0,0.00787835]
[1721234050471,1.499383,64314.0,64313.0,0.00887835]
[1721234053474,2.11362131,64314.0,64313.0,0.00887835]
[1721234053675,1.96473874,64314.0,64313.0,0.00887835]
[1721234054234,2.01473874,64314.0,64313.0,0.00887835]
[1721234054457,2.03773874,64314.0,64313.0,0.00887835]
[1721234054675,2.49071274,64314.0,64313.0,0.00887835]
[1721234055220,2.49071274,64314.0,64312.0,3.5e-07]
[1721234055221,0.05,64313.0,64312.0,3.5e-07]
[1721234055417,0.05,64313.0,64306.0,6.5e-07]
[1721234055418,2.02141283,64307.0,64306.0,6.5e-07]
[1721234055722,1.55377857,64307.0,64306.0,6.5e-07]
[1721234055964,1.65377857,64307.0,64306.0,6.5e-07]
[1721234056315,1.49939683,64307.0,64306.0,6.5e-07]
[1721234056711,1.50439683,64307.0,64306.0,6.5e-07]
[1721234057128,1.88612814,64307.0,64306.0,6.5e-07]
[1721234057482,2.19713614,64307.0,64306.0,6.5e-07]
[1721234057814,2.05078657,64307.0,64306.0,0.00100065]
[1721234058468,2.05078657,64307.0,64300.0,6.5e-07]
[1721234058469,1.760703,64301.0,64300.0,6.5e-07]
[1721234058672,1.94225953,64301.0,64300.0,6.5e-07]
[1721234058918,2.11525953,64301.0,64300.0,6.5e-07]
[1721234059114,2.5306461,64301.0,64300.0,6.5e-07]
[1721234059292,1.98808474,64301.0,64300.0,6.5e-07]
[1721234059666,1.65404774,64301.0,64300.0,6.5e-07]
[1721234059820,1.65404774,64301.0,64300.0,0.00200065]
[1721234060202,1.500666,64301.0,64300.0,0.00200065]
[1721234060404,1.089629,64301.0,64300.0,0.00200065]
[1721234060836,1.400666,64301.0,64300.0,0.00200065]
[1721234061350,1.088629,64301.0,64300.0,0.00200065]
[1721234061557,1.399666,64301.0,64300.0,6.5e-07]
[1721234061757,1.407666,64301.0,64300.0,0.00100065]
[1721234062030,1.100629,64301.0,64300.0,0.00100065]
[1721234062204,1.096629,64301.0,64300.0,0.00100065]
[1721234062406,1.196629,64301.0,64300.0,0.00100065]
[1721234062612,1.200629,64301.0,64300.0,0.00100065]
[1721234062810,1.511666,64301.0,64300.0,0.00100065]
[1721234063210,1.503666,64301.0,64300.0,6.5e-07]
[1721234063412,1.192629,64301.0,64300.0,6.5e-07]
[1721234063854,0.881592,64301.0,64300.0,6.5e-07]
[1721234064059,0.889592,64301.0,64300.0,0.00100065]
[1721234064260,1.200629,64301.0,64300.0,0.00100065]
[1721234064432,1.507666,64301.0,64300.0,0.00100065]
[1721234064866,1.499666,64301.0,64300.0,6.5e-07]
[1721234065358,1.499666,64301.0,64300.0,0.06350065]
[1721234065359,0.255518,64301.0,64300.0,0.06350065]
[1721234065581,0.02438425,64324.0,64300.0,0.29948239]
[1721234065787,0.0829,64330.0,64302.0,0.0635]
[1721234065788,0.310975,64314.0,64302.0,0.0635]
[1721234065979,0.31094,64321.0,64304.0,0.0607]
[1721234065980,0.310965,64316.0,64304.0,0.0607]
[1721234066183,0.12717479,64336.0,64301.0,0.1116381]
[1721234066184,0.310917,64326.0,64313.0,0.0607]
[1721234066518,0.46304871,64326.0,64314.0,0.15438174]
[1721234066709,0.05084,64340.0,64315.0,0.02964817]
[1721234066916,0.002794,64339.0,64316.0,0.15749116]
[1721234067034,0.310908,64328.0,64317.0,0.0607]
[1721234067235,0.310908,64328.0,64318.0,0.15749096]
[1721234067442,0.00084,64340.0,64320.0,0.0607]
[1721234067657,0.155467,64322.0,64321.0,0.18402991]
[1721234068068,0.155465,64323.0,64321.0,0.18402991]
[1721234068288,0.00084,64340.0,64320.0,0.0607]
[1721234068289,0.46641,64321.0,64320.0,0.0607]
[1721234068495,0.15547,64321.0,64320.0,0.0607]
[1721234069658,0.77735,64321.0,64320.0,0.0607]
[1721234069830,0.46441,64321.0,64320.0,0.0607]
[1721234070158,0.46441,64321.0,64320.0,0.07501]
[1721234070383,0.310927,64324.0,64320.0,0.22939174]
[1721234070564,0.1,64334.0,64321.0,0.15438174]
[1721234070565,0.310896,64331.0,64321.0,0.15438174]
[1721234070715,0.155453,64328.0,64321.0,0.15438174]
[1721234070915,0.155459,64326.0,64321.0,0.15438174]
[1721234071142,0.1,64327.0,64322.0,0.03187917]
[1721234071346,0.155441,64333.0,64323.0,0.15438174]
[1721234071505,0.310838,64343.0,64323.0,0.15438174]
[1721234071506,0.1,64332.0,64323.0,0.15438174]
[1721234071702,0.255444,64332.0,64324.0,0.00310884]
[1721234071906,0.001,64328.0,64325.0,0.18161972]
[1721234072183,0.001,64328.0,64327.0,0.0784]
[1721234072393,0.001,64328.0,64323.0,0.0031088]
[1721234072394,0.001,64328.0,64305.0,0.01514306]
[1721234072395,0.1452,64309.0,64305.0,0.01514306]
[1721234072715,0.1452,64309.0,64294.0,0.13868278]
[1721234072716,0.155552,64287.0,64276.0,0.11127302]
[1721234072894,0.155552,64287.0,64276.0,4.035e-05]
[1721234072895,0.85876,64287.0,64276.0,4.035e-05]
[1721234073127,0.466699,64281.0,64276.0,4.035e-05]
[1721234073383,1.500098,64281.0,64276.0,4.035e-05]
[1721234073599,1.188965,64281.0,64276.0,4.035e-05]
[1721234073821,1.500098,64281.0,64276.0,4.035e-05]
[1721234074441,1.500098,64281.0,64280.0,0.01195645]
[1721234074888,1.188965,64281.0,64280.0,0.01195645]
[1721234075293,1.500098,64281.0,64280.0,0.01195645]
[1721234075892,1.510098,64281.0,64280.0,0.01295645]
[1721234077220,1.510098,64281.0,64280.0,0.01195645]
[1721234077221,1.188965,64281.0,64280.0,0.01195645]
[1721234079192,1.188965,64281.0,64280.0,0.01295645]
[1721234079193,1.202965,64281.0,64280.0,0.01295645]
[1721234079967,1.199965,64281.0,64280.0,0.01295645]
[1721234080583,1.213965,64281.0,64280.0,0.01295645]
[1721234081100,1.213965,64281.0,64280.0,0.07555645]
[1721234081101,1.113965,64281.0,64280.0,0.07555645]
[1721234081235,1.113965,64281.0,64280.0,0.09096613]
[1721234081594,0.036,64281.0,64280.0,0.09196613]
[1721234081733,0.311013,64306.0,64282.0,0.0631]
[1721234081734,0.03970775,64302.0,64282.0,0.0631]
[1721234081933,0.03970775,64302.0,64283.0,0.15749264]
[1721234081934,0.155546,64290.0,64283.0,0.15749264]
[1721234082150,0.311082,64292.0,64283.0,0.15749264]
[1721234082151,0.155543,64291.0,64284.0,0.03769588]
[1721234082357,0.155519,64301.0,64286.0,0.0631]
[1721234082706,0.311028,64303.0,64287.0,0.15438174]
[1721234082874,0.155524,64299.0,64287.0,0.15438174]
[1721234083077,0.155545,64290.0,64287.0,0.15438174]
[1721234083330,0.311083,64292.0,64288.0,0.02551776]
[1721234083459,0.155546,64290.0,64288.0,0.1798995]
[1721234083662,0.311083,64292.0,64288.0,0.02551776]
[1721234083663,0.155547,64289.0,64288.0,0.02551776]
[1721234083843,0.155552,64287.0,64286.0,0.0631]
[1721234084048,0.77776,64287.0,64286.0,0.0631]
[1721234084247,0.466656,64287.0,64286.0,0.0631]
[1721234084603,0.466656,64287.0,64280.0,0.02686613]
[1721234084604,0.466699,64281.0,64280.0,0.02686613]
[1721234084807,1.088965,64281.0,64280.0,0.01145645]
[1721234086002,0.1,64292.0,64280.0,0.01145645]
[1721234086181,0.156552,64287.0,64286.0,0.013]
[1721234086381,0.001,64287.0,64286.0,0.013]
[1721234086592,0.001,64287.0,64280.0,0.01145645]
[1721234086593,0.155557,64285.0,64280.0,0.01145645]
[1721234086822,0.155556,64286.0,64280.0,0.16583819]
[1721234086988,0.007,64281.0,64280.0,0.16683819]
[1721234087190,0.007,64281.0,64280.0,0.16883819]
[1721234087406,0.15556,64284.0,64280.0,0.16783819]
[1721234087611,0.15556,64284.0,64280.0,0.16583819]
[1721234087811,0.311074,64294.0,64281.0,0.15438174]
[1721234088010,0.078,64310.0,64281.0,0.15438174]
[1721234088011,0.155547,64289.0,64282.0,0.03920072]
[1721234088208,0.1,64288.0,64283.0,0.15438174]
[1721234089181,0.311112,64286.0,64282.0,0.03920072]
[1721234089321,0.155558,64285.0,64280.0,0.02245645]
[1721234089525,0.311112,64286.0,64281.0,0.15438174]
[1721234089526,0.15556,64284.0,64281.0,0.15438174]
[1721234089722,0.311112,64286.0,64281.0,0.15438174]
[1721234089723,0.466669,64286.0,64281.0,0.15438174]
[1721234090297,0.15556,64284.0,64281.0,0.15438174]
[1721234090470,0.15556,64284.0,64280.0,0.01145645]
[1721234090471,0.15556,64284.0,64283.0,0.002]
[1721234090649,1.088917,64284.0,64283.0,0.002]
[1721234091234,1.188917,64284.0,64283.0,0.002]
[1721234091464,1.188917,64284.0,64280.0,0.01145645]
[1721234091465,1.088965,64281.0,64280.0,0.01145645]
[1721234091662,1.400098,64281.0,64280.0,0.01145645]
[1721234091872,2.10831274,64281.0,64280.0,0.01145645]
[1721234092098,2.13131274,64281.0,64280.0,0.01145645]
[1721234092538,1.62675575,64281.0,64280.0,0.01145645]
[1721234092823,1.73207974,64281.0,64280.0,0.01145645]
[1721234093296,1.577698,64281.0,64280.0,0.01145645]
[1721234093502,1.188965,64281.0,64280.0,0.01145645]
[1721234093734,1.196965,64281.0,64280.0,0.01245645]
[1721234095319,0.885832,64281.0,64280.0,0.01245645]
[1721234096338,0.008,64281.0,64280.0,0.01245645]
[1721234096548,0.47780782,64281.0,64280.0,0.01245645]
[1721234096805,0.78894082,64281.0,64280.0,0.01245645]
[1721234097006,1.10007382,64281.0,64280.0,0.01245645]
[1721234097365,1.50320682,64281.0,64280.0,0.01145645]
[1721234097773,1.50320682,64281.0,64276.0,4.035e-05]
[1721234097774,1.945511,64277.0,64276.0,8e-07]
[1721234097977,2.17145081,64277.0,64276.0,8e-07]
[1721234098187,2.1284939,64277.0,64276.0,8e-07]
[1721234098383,1.88715378,64277.0,64276.0,8e-07]
[1721234098587,1.84218262,64277.0,64276.0,8e-07]
[1721234098782,1.79536974,64277.0,64276.0,8e-07]
[1721234099227,1.81812494,64277.0,64276.0,8e-07]
[1721234099522,1.79536974,64277.0,64276.0,8e-07]
[1721234099697,1.81860142,64277.0,64276.0,8e-07]
[1721234099934,1.80936974,64277.0,64276.0,0.0010008]
[1721234100274,1.83260563,64277.0,64276.0,0.0010008]
[1721234100684,1.80936974,64277.0,64276.0,0.0010008]
[1721234100835,1.78614285,64277.0,64276.0,0.0010008]
[1721234101045,2.21327231,64277.0,64276.0,0.0010008]
[1721234101246,2.25912874,64277.0,64276.0,0.0010008]
[1721234101451,1.77062617,64277.0,64276.0,0.0010008]
[1721234102044,1.80899928,64277.0,64276.0,0.0010008]
[1721234102242,1.81199928,64277.0,64276.0,0.0020008]
[1721234102463,1.77362617,64277.0,64276.0,0.0020008]
[1721234102865,1.46247317,64277.0,64276.0,0.0020008]
[1721234103233,1.22889143,64277.0,64276.0,0.0020008]
[1721234104611,1.206035,64277.0,64276.0,0.0679008]
[1721234104810,0.794882,64277.0,64276.0,0.08274088]
[1721234105629,0.483729,64277.0,64276.0,0.08274088]
[1721234106033,0.017,64277.0,64276.0,0.08274088]
[1721234106264,0.483729,64277.0,64276.0,0.08274088]
[1721234106444,0.780882,64277.0,64276.0,0.08174088]
[1721234106642,0.780882,64277.0,64276.0,0.08265388]
[1721234106643,0.469729,64277.0,64276.0,0.08265388]
[1721234106848,0.788712,64277.0,64276.0,0.08365388]
[1721234107301,0.781712,64277.0,64276.0,0.08265388]
[1721234107512,0.468559,64277.0,64276.0,0.08165388]
[1721234108123,0.467559,64277.0,64276.0,0.08165388]
[1721234108295,1.089865,64277.0,64276.0,0.0009138]
[1721234108522,1.502018,64277.0,64276.0,0.0089138]
[1721234109685,1.5168688,64277.0,64276.0,0.0009138]
[1721234110045,1.5168688,64277.0,64276.0,0.0019138]
[1721234110638,1.5168688,64277.0,64276.0,0.0009138]
[1721234110921,1.5168688,64277.0,64276.0,0.0019138]
[1721234110922,0.878712,64277.0,64276.0,0.0019138]
[1721234111311,1.189865,64277.0,64276.0,0.0019138]
[1721234112310,1.51686512,64277.0,64276.0,0.0019138]
[1721234112470,1.20571212,64277.0,64276.0,0.0019138]
[1721234112703,1.189865,64277.0,64276.0,0.0019138]
[1721234112906,0.567559,64277.0,64276.0,0.0019138]
[1721234113559,0.467559,64277.0,64276.0,0.0019138]
[1721234113907,0.467559,64277.0,64276.0,0.1522138]
[1721234114105,0.778712,64277.0,64276.0,0.16743518]
[1721234114254,0.778712,64277.0,64276.0,0.08743518]
[1721234114453,0.778712,64277.0,64276.0,0.0722138]
[1721234115270,0.778712,64277.0,64276.0,0.0059138]
[1721234115471,1.2062171,64277.0,64276.0,0.0059138]
[1721234115820,1.20844978,64277.0,64276.0,0.0059138]
[1721234115934,1.189865,64277.0,64276.0,0.0059138]
[1721234116337,1.20847309,64277.0,64276.0,0.0059138]
[1721234116751,1.51962609,64277.0,64276.0,0.0059138]
[1721234116952,1.20847309,64277.0,64276.0,0.0059138]
[1721234118001,0.89732009,64277.0,64276.0,0.0059138]
[1721234118209,0.878712,64277.0,64276.0,0.0059138]
[1721234118409,1.189865,64277.0,64276.0,0.0059138]
[1721234119330,0.878712,64277.0,64276.0,0.0059138]
[1721234119956,0.878712,64277.0,64276.0,0.0667138]
[1721234120077,0.567559,64277.0,64276.0,0.0667138]
[1721234120282,0.778712,64277.0,64276.0,0.0667138]
[1721234121512,0.467559,64277.0,64276.0,0.0667138]
[1721234121954,0.156406,64277.0,64276.0,0.1430138]
[1721234122155,0.156406,64277.0,64276.0,0.15731518]
[1721234122580,0.467559,64277.0,64276.0,0.15731518]
[1721234122956,0.467559,64277.0,64276.0,0.31169692]
[1721234122957,0.00083,64277.0,64276.0,0.31169692]
[1721234123953,0.00083,64277.0,64276.0,0.64546305]
[1721234124172,0.00183,64277.0,64276.0,0.65546305]
[1721234124387,0.00183,64277.0,64276.0,0.96662105]
[1721234124542,0.00183,64277.0,64276.0,0.66946305]
[1721234125166,0.311103,64288.0,64276.0,0.66946305]
[1721234125399,0.155525,64299.0,64290.0,0.145]
[1721234125635,0.46304871,64292.0,64291.0,0.15438174]
[1721234125814,0.155519,64301.0,64291.0,0.15438174]
[1721234126031,0.155522,64300.0,64292.0,0.05292175]
[1721234126243,0.311036,64302.0,64293.0,0.15438174]
[1721234126244,0.155517,64302.0,64293.0,0.15438174]
[1721234126477,0.310997,64310.0,64294.0,0.00311036]
[1721234126478,0.155513,64304.0,64294.0,0.00311036]
[1721234126679,0.155517,64302.0,64295.0,0.15438174]
[1721234126870,0.155514,64303.0,64296.0,0.02073035]
[1721234127088,0.155514,64303.0,64297.0,0.15438174]
[1721234127249,0.001,64300.0,64297.0,0.15438174]
[1721234127854,0.310997,64310.0,64297.0,0.15438174]
[1721234127855,0.155507,64306.0,64298.0,0.0608]
[1721234128055,0.155507,64306.0,64299.0,0.20593849]
[1721234128298,0.155508,64305.0,64299.0,0.2090486]
[1721234128589,0.310996,64310.0,64299.0,0.2090486]
[1721234128735,0.410989,64311.0,64300.0,0.0825]
[1721234128736,0.311005,64308.0,64300.0,0.0825]
[1721234128916,0.155509,64305.0,64301.0,0.19167862]
[1721234129121,0.00084,64314.0,64301.0,0.19167862]
[1721234129122,0.155504,64307.0,64301.0,0.19167862]
[1721234129408,0.155506,64306.0,64301.0,0.19167862]
[1721234129735,0.00084,64314.0,64302.0,0.57926736]
[1721234129944,0.155511,64304.0,64303.0,0.15438174]
[1721234130140,0.00084,64314.0,64303.0,0.22156336]
[1721234130419,0.00084,64314.0,64307.0,0.155503]
[1721234130567,0.00084,64314.0,64308.0,0.15438174]
[1721234130927,0.00084,64314.0,64308.0,0.15749128]
[1721234131573,0.310945,64320.0,64309.0,0.081]
[1721234131773,0.00570587,64313.0,64311.0,0.0613]
[1721234131987,0.310916,64326.0,64312.0,0.15438174]
[1721234131988,0.102794,64325.0,64312.0,0.15438174]
[1721234132190,0.310954,64319.0,64312.0,0.15438174]
[1721234132394,0.155478,64318.0,64312.0,0.15438174]
[1721234132812,0.310938,64322.0,64312.0,0.15438174]
[1721234133034,0.155477,64318.0,64313.0,0.0530203]
[1721234133187,0.155473,64320.0,64314.0,0.15438174]
[1721234133387,0.1,64321.0,64314.0,0.15438174]
[1721234133388,0.155471,64321.0,64314.0,0.15438174]
[1721234133574,0.310938,64322.0,64314.0,0.15438174]
[1721234133777,0.310938,64322.0,64315.0,0.02718114]
[1721234133782,0.155471,64321.0,64315.0,0.02718114]
[1721234134008,0.310938,64322.0,64316.0,0.15438174]
[1721234134009,0.155478,64318.0,64316.0,0.15438174]
[1721234134214,0.07717479,64327.0,64316.0,0.15438174]
[1721234134215,0.54361279,64317.0,64316.0,0.15438174]
[1721234134423,0.155479,64317.0,64316.0,0.15438174]
[1721234134793,0.310927,64324.0,64316.0,0.17866803]
[1721234134991,0.155479,64317.0,64316.0,0.17866803]
[1721234135194,0.1,64323.0,64316.0,0.19266803]
[1721234135333,0.155468,64322.0,64316.0,0.19266803]
[1721234135533,0.1,64323.0,64316.0,0.20466803]
[1721234135534,0.255465,64323.0,64316.0,0.20466803]
[1721234135734,0.255465,64323.0,64316.0,0.04]
[1721234135735,0.07717479,64322.0,64316.0,0.04]
[1721234135943,0.07717479,64322.0,64316.0,0.026]
[1721234135944,0.777397,64317.0,64316.0,0.026]
[1721234136326,0.777397,64317.0,64316.0,0.038]
[1721234136327,1.188356,64317.0,64316.0,0.038]
[1721234137010,1.188356,64317.0,64316.0,0.026]
[1721234137163,0.310887,64332.0,64316.0,0.026]
[1721234137164,0.0615,64339.0,64316.0,0.32708174]
[1721234137366,0.155453,64329.0,64317.0,0.1901988]
[1721234137541,0.155453,64329.0,64318.0,0.155476]
[1721234137782,0.155453,64329.0,64319.0,0.15438174]
[1721234137986,0.07717479,64327.0,64319.0,0.15438174]
[1721234138594,0.155468,64322.0,64319.0,0.15438174]
[1721234138908,0.15547,64321.0,64320.0,0.03287899]
[1721234139131,0.47135485,64321.0,64320.0,0.18726073]
[1721234139530,0.78229485,64321.0,64320.0,0.03287899]
[1721234139693,0.466425,64319.0,64318.0,0.00312709]
[1721234139896,0.78231722,64319.0,64318.0,0.00312709]
[1721234140092,0.47136722,64319.0,64318.0,0.15750883]
[1721234140502,0.78231722,64319.0,64318.0,0.15750883]
[1721234140702,0.78231722,64319.0,64318.0,0.15438174]
[1721234140902,0.78231722,64319.0,64318.0,0.02147817]
[1721234141107,0.78231722,64319.0,64308.0,0.0814]
[1721234141108,0.155499,64309.0,64308.0,0.0814]
[1721234141393,0.47143689,64309.0,64308.0,0.23578174]
[1721234141917,0.16043889,64309.0,64308.0,0.23578174]
[1721234142122,0.47143689,64309.0,64308.0,0.23578174]
[1721234142326,0.78243489,64309.0,64308.0,0.15438174]
[1721234142568,0.47143689,64309.0,64308.0,0.17647121]
[1721234142770,0.16043889,64309.0,64308.0,0.19047121]
[1721234143237,0.00493989,64309.0,64308.0,0.26557121]
[1721234143656,0.310973,64315.0,64308.0,0.26557121]
[1721234143864,0.155488,64314.0,64309.0,0.15438174]
[1721234144112,0.310943,64321.0,64310.0,0.05177754]
[1721234144113,0.310953,64319.0,64310.0,0.05177754]
[1721234144347,0.155482,64316.0,64311.0,0.15438174]
[1721234145040,0.155485,64315.0,64311.0,0.15438174]
[1721234145251,0.155487,64314.0,64311.0,0.15438174]
[1721234145375,0.46647,64313.0,64312.0,0.03658391]
[1721234145576,0.85462379,64313.0,64312.0,0.19096565]
[1721234145777,0.85462379,64313.0,64311.0,0.026]
[1721234145778,0.777457,64312.0,64311.0,0.026]
[1721234146999,0.155491,64312.0,64311.0,0.16838174]
[1721234147408,0.155491,64312.0,64311.0,0.15438174]
[1721234147605,0.466474,64312.0,64311.0,0.15438174]
[1721234148187,0.155491,64312.0,64311.0,0.15438174]
[1721234148394,0.155491,64312.0,64311.0,0.17637991]
[1721234148591,0.155491,64312.0,64311.0,0.19037991]
[1721234148799,0.155491,64312.0,64311.0,0.19837991]
[1721234148998,0.466474,64312.0,64311.0,0.19837991]
[1721234149255,0.777457,64312.0,64311.0,0.19837991]
[1721234149428,0.777457,64312.0,64311.0,0.022]
[1721234149429,1.18844,64312.0,64311.0,0.022]
[1721234150180,1.18844,64312.0,64311.0,0.014]
[1721234151085,0.777542,64305.0,64300.0,0.0647]
[1721234151293,0.777542,64305.0,64304.0,0.15529474]
[1721234151516,0.777542,64305.0,64304.0,0.17729421]
[1721234152132,1.088559,64305.0,64304.0,0.17729421]
[1721234152788,1.088559,64305.0,64304.0,0.18829421]
[1721234153351,1.088559,64305.0,64304.0,0.19329421]
[1721234154445,0.777542,64305.0,64304.0,0.19329421]
[1721234154644,0.466525,64305.0,64304.0,0.19329421]
[1721234154855,0.777542,64305.0,64304.0,0.19329421]
[1721234155903,0.78529737,64305.0,64304.0,0.19329421]
[1721234156634,0.78529737,64305.0,64304.0,0.016913]
[1721234156635,1.09631437,64305.0,64304.0,0.016913]
[1721234156907,1.73911311,64305.0,64304.0,0.016913]